{"text_format":"1","workbook":"xlsx","n_sheets":4,"sheets":["使い方","出品者名簿","出品票　貼付 ","出品一覧表"],"not_rendered":{"charts":0,"images":0,"macros":0,"external_links":0,"defined_names":2,"comments":1,"pivot_tables":0},"unopened":[],"bounds":{"document_bytes":16777216,"sheet_cells":100000,"rows_first":2000,"rows_last":500,"rows_between":2000,"halvings":0,"cell_chars":16384,"cell_head_chars":4096},"cells_cut":0,"cells_raw":0,"read":"whole","date_system":"1900"}

{"sheet":"使い方","index":0,"n_rows":12,"n_cols":3,"rows_kept":12,"cut":false,"hidden":false,"merged":[]}
[null,"使い方","　"]
[1,"出品者名簿に入力する"]
[2,"A4サイズの出品票を用意し、枠の調整のためにコピーを数枚とる。"]
[null,"印刷するプリンターの機種によって枠と文字のズレが発生いたしますので、出品票の原本でいきなり印刷をかけないよう、"]
[null,"コピーで調整してから印刷するようにしてください。"]
[3,"【出品票　貼付】右上緑の枠内に出品者名簿の印刷したい任意の番号を入力して印刷。"]
[null,"枠のズレは【出品票　貼付】のセルの行の高さや印刷設定などを変更して調整してください。"]
[null,"調整ができたら、正規の出品票で印刷をかける。"]
[]
["※","　手書きやご自身で設定したものを使用し記入していただいてかまいません。"]
["※","　切ってバラになったものは手書きでご記入ください。"]
["※","　審査時などに使用する出品一覧表もタブの一番右にございます。よろしければご利用ください。"]

{"sheet":"出品者名簿","index":1,"n_rows":155,"n_cols":14,"rows_kept":155,"cut":false,"hidden":false,"merged":[]}
["令和8年度身体障害者福祉のための　第６8回埼玉県児童生徒美術展覧会 名簿"]
[null,null,null,null,null,null,null,null,null,"地区:",null,"さいたま"]
[]
["番号","賞別","市・区","学校名\n（小・中無し）","校種","学年","氏名（フリガナ編集）","フリガナ","題名","授業","部活動","題材","縦・横\n横"]
["例","◎/特選/入選","〇○市","埼身協","中",2,"埼身　協子",{"$f":"PHONETIC(G5)","v":"さいしん　きょうこ"},"〇　○　〇","〇",null,"自画像","縦"]
[1,"入選",null,null,null,null,null,{"$f":"PHONETIC(G6)","v":""},null,null,null,null,null,"川口市立芝小学校"]
[2,"入選",null,null,null,null,null,"",null,null,null,null,null,"川口市立芝西小学校"]
[3,"入選",null,null,null,null,null,"",null,null,null,null,null,"戸田市立新曽小学校"]
[4,"入選",null,null,null,null,null,"",null,null,null,null,null,"川口市立原町小学校"]
[5,"入選",null,null,null,null,null,"",null,null,null,null,null,"和光市立下新倉小学校"]
[6,"入選",null,null,null,null,null,"",null,null,"　",null,null,"蕨市立北小学校"]
[7,"入選",null,null,null,null,null,"",null,"　","　",null,null,"草加市立西町小学校"]
[8,"入選",null,null,null,null,null,"",null,"　","　",null,null,"川口市立仲町小学校"]
[9,"入選",null,null,null,null,null,"",null,"　","　",null,null,"川口市立芝西小学校"]
[10,"入選",null,null,null,null,null,"",null,"　","　",null,null,"川口市立鳩ケ谷小学校"]
[11,"入選",null,null,null,null,null,"",null,"　","　",null,null,"川口市立芝小学校"]
[12,"入選",null,null,null,null,null,"",null,"　","　",null,null,"川口市立里小学校"]
[13,"入選",null,null,null,null,null,"",null,"　","　",null,null,"戸田市立戸田第二小学校"]
[14,"入選",null,null,null,null,null,"",null,"　","　",null,null,"戸田市立新曽小学校"]
[15,"入選",null,null,null,null,null,"",null,"　","　",null,null,"戸田市立芦原小学校"]
[16,"入選",null,null,null,null,null,"",null,"　","　",null,null,"戸田市立戸田第一小学校"]
[17,"入選",null,null,null,null,null,"",null,"　","　",null,null,"川口市立芝小学校"]
[18,"入選",null,null,null,null,null,"",null,"　","　",null,null,"蕨市立東小学校"]
[19,"入選",null,null,null,null,null,"",null,"　","　",null,null,"朝霞市立朝霞第三小学校"]
[20,"入選",null,null,null,null,null,"",null,"　","　",null,null,"戸田市立戸田第二小学校"]
[21,"入選",null,null,null,null,null,"",null,"　","　",null,null,"戸田市立芦原小学校"]
[22,"入選",null,null,null,null,null,"",null,"　","　",null,null,"戸田市立戸田第二小学校"]
[23,"入選",null,null,null,null,null,"",null,"　","　",null,null,"戸田市立戸田第一小学校"]
[24,"入選",null,null,null,null,null,"",null,"　","　",null,null,"川口市立元郷小学校"]
[25,"入選",null,null,null,null,null,"",null,"　","　",null,null,"川口市立原町小学校"]
[26,"入選",null,null,null,null,null,"",null,"　","　",null,null,"川口市立芝南小学校"]
[27,"入選",null,null,null,null,null,"",null,"　","　",null,null,"草加市立高砂小学校"]
[28,"入選",null,null,null,null,null,"",null,"　","　",null,null,"戸田市立芦原小学校"]
[29,"入選",null,null,null,null,null,"",null,"　","　",null,null,"川口市立原町小学校"]
[30,"入選",null,null,null,null,null,"",null,"　","　",null,null,"川口市立新郷小学校"]
[31,"入選",null,null,null,null,null,"",null,"　","　",null,null,"川口市立鳩ヶ谷小学校"]
[32,"入選",null,null,null,null,null,"",null,"　","　",null,null,"朝霞市立朝霞第六小学校"]
[33,"入選",null,null,null,null,null,"",null,"　","　",null,null,"川口市立鳩ヶ谷小学校"]
[34,"入選",null,null,null,null,null,"",null,"　","　",null,null,"朝霞市立朝霞第三小学校"]
[35,"入選",null,null,null,null,null,"",null,"　","　",null,null,"川口市立新郷小学校"]
[36,"入選",null,null,null,null,null,"",null,"　","　",null,null,"戸田市立芦原小学校"]
[37,"入選",null,null,null,null,null,"",null,"　","　",null,null,"戸田市立笹目小学校"]
[38,"入選",null,null,null,null,null,"",null,"　","　",null,null,"蕨市立中央東小学校"]
[39,"入選",null,null,null,null,null,"",null,"　","　",null,null,"戸田市立戸田第二小学校"]
[40,"入選",null,null,null,null,null,"",null,"　","　",null,null,"蕨市立南小学校"]
[41,"入選",null,null,null,null,null,"",null,"　","　",null,null,"草加市立氷川小学校"]
[42,"入選",null,null,null,null,null,"",null,"　","　",null,null,"和光市立第五小学校"]
[43,"入選",null,null,null,null,null,"",null,"　","　",null,null,"戸田市立芦原小学校"]
[44,"入選",null,null,null,null,null,"",null,"　","　",null,null,"新座市立東野小学校"]
[45,"入選",null,null,null,null,null,"",null,"　","　",null,null,"川口市立芝西小学校"]
[46,"入選",null,null,null,null,null,"",null,"　","　",null,null,"朝霞市立朝霞第八小学校"]
[47,"入選",null,null,null,null,null,"",null,"　","　",null,null,"朝霞市立朝霞第六小学校"]
[48,"入選",null,null,null,null,null,"",null,"　","　",null,null,"朝霞市立朝霞第七小学校"]
[49,"入選",null,null,null,null,null,"",null,"　","　",null,null,"朝霞市立朝霞第三小学校"]
[50,"入選",null,null,null,null,null,"",null,"　","　",null,null,"蕨市立北小学校"]
[51,"入選",null,null,null,null,null,"",null,"　","　",null,null,"朝霞市立朝霞第十小学校"]
[52,"入選",null,null,null,null,null,"",null,"　","　",null,null,"草加市立西町小学校"]
[53,"入選",null,null,null,null,null,"",null,"　","　",null,null,"川口市立慈林小学校"]
[54,"入選",null,null,null,null,null,"",null,"　","　",null,null,"蕨市立北小学校"]
[55,"入選",null,null,null,null,null,"",null,"　","　",null,null,"川口市立仲町小学校"]
[56,"入選",null,null,null,null,null,"",null,"　","　",null,null,"朝霞市立朝霞第七小学校"]
[57,"入選",null,null,null,null,null,"",null,"　","　",null,null,"和光市立和光第四小学校"]
[58,"入選",null,null,null,null,null,"",null,"　","　",null,null,"和光市立和光第四小学校"]
[59,"入選",null,null,null,null,null,"",null,"　","　",null,null,"戸田市立戸田東小学校"]
[60,"入選",null,null,null,null,null,"",null,"　","　",null,null,"草加市立花栗南小学校"]
[61,"入選",null,null,null,null,null,{"$f":"PHONETIC(G67)","v":""},null,"　","　",null,null,"戸田市立戸田第二小学校"]
[62,"入選",null,null,null,null,null,"",null,"　","　",null,null,"朝霞市立朝霞第六小学校"]
[63,"入選",null,null,null,null,null,"",null,"　","　",null,null,"朝霞市立朝霞第七小学校"]
[64,"入選",null,null,null,null,null,"",null,"　","　",null,null,"戸田市立戸田第二小学校"]
[65,"入選",null,null,null,null,null,"",null,"　","　",null,null,"朝霞市立朝霞第七小学校"]
[67,"入選",null,null,null,null,null,{"$f":"PHONETIC(G71)","v":""},null,"　","　",null,null,"朝霞市立朝霞第二小学校"]
[67,"入選",null,null,null,null,null,"",null,"　","　",null,null,"川口市立仲町小学校"]
[68,"入選",null,null,null,null,null,"",null,"　","　",null,null,"戸田市立戸田東小学校"]
[69,"入選",null,null,null,null,null,"",null,"　","　",null,null,"川口市立原町小学校"]
[70,"入選",null,null,null,null,null,"",null,"　","　",null,null,"草加市立氷川小学校"]
[71,"入選",null,null,null,null,null,"",null,"　","　",null,null,"和光市立下新倉小学校"]
[72,"入選",null,null,null,null,null,"",null,"　","　",null,null,"和光市立第四小学校"]
[73,"入選",null,null,null,null,null,"",null,"　","　",null,null,"朝霞市立朝霞第二小学校"]
[74,"入選",null,null,null,null,null,"",null,"　","　",null,null,"川口市立戸塚南小学校"]
[75,"入選",null,null,null,null,null,"",null,"　","　",null,null,"朝霞市立朝霞第二小学校"]
[76,"入選",null,null,null,null,null,"",null,"　","　",null,null,"川口市立戸塚東小学校"]
[77,"入選",null,null,null,null,null,"",null,"　","　",null,null,"朝霞市立朝霞第二小学校"]
[78,"入選",null,null,null,null,null,"",null,"　","　",null,null,"朝霞市立朝霞第十小学校"]
[79,"入選",null,null,null,null,null,"",null,"　","　",null,null,"新座市立野火止小学校"]
[80,"入選",null,null,null,null,null,"",null,"　","　",null,null,"川口市立新郷小学校"]
[81,"入選",null,null,null,null,null,"",null,"　","　",null,null,"川口市立青木中央小学校"]
[82,"入選",null,null,null,null,null,"",null,"　","　",null,null,"和光市立下新倉小学校"]
[83,"入選",null,null,null,null,null,"",null,"　","　",null,null,"川口市立幸町小学校"]
[84,"入選",null,null,null,null,null,"",null,"　","　",null,null,"和光市立第四小学校"]
[85,"入選",null,null,null,null,null,"",null,"　","　",null,null,"朝霞市立朝霞第六小学校"]
[86,"入選",null,null,null,null,null,"",null,"　","　",null,null,"草加市立草加小学校"]
[87,"入選",null,null,null,null,null,"",null,"　","　",null,null,"川口市立戸塚東小学校"]
[88,"入選",null,null,null,null,null,"",null,"　","　",null,null,"川口市立戸塚南小学校"]
[89,"入選",null,null,null,null,null,"",null,"　","　",null,null,"川口市立飯塚小学校"]
[90,"入選",null,null,null,null,null,"",null,"　","　",null,null,"戸田市立新曽北小学校"]
[91,"入選",null,null,null,null,null,"",null,"　","　",null,null,"朝霞市立朝霞第十小学校"]
[92,"入選",null,null,null,null,null,"",null,"　","　",null,null,"草加市立新田小学校"]
[93,"入選",null,null,null,null,null,"",null,"　","　",null,null,"川口市立戸塚南小学校"]
[94,"入選",null,null,null,null,null,"",null,"　","　",null,null,"朝霞市立朝霞第七小学校"]
[95,"入選",null,null,null,null,null,"",null,"　","　",null,null,"草加市立八幡北小学校"]
[96,"入選",null,null,null,null,null,"",null,"　","　",null,null,"川口市立鳩ヶ谷小学校"]
[97,"入選",null,null,null,null,null,"",null,"　","　",null,null,"新座市立野火止小学校"]
[98,"入選",null,null,null,null,null,"",null,"　","　",null,null,"川口市立戸塚南小学校"]
[99,"入選",null,null,null,null,null,"",null,"　","　",null,null,"川口市立芝西小学校"]
[100,"入選",null,null,null,null,null,"",null,"　","　",null,null,"志木市立志木第二小学校"]
[101,"入選",null,null,null,null,null,"",null,"　","　",null,null,"川口市立戸塚北小学校"]
[102,"入選",null,null,null,null,null,"",null,"　","　",null,null,"川口市立戸塚南小学校"]
[103,"入選",null,null,null,null,null,"",null,"　","　",null,null,"戸田市立戸田東中学校"]
[104,"入選",null,null,null,null,null,"",null,"　","　",null,null,"草加市立新栄中学校"]
[105,"入選",null,null,null,null,null,"",null,"　","　",null,null,"朝霞市立朝霞第四中学校"]
[106,"入選",null,null,null,null,null,"",null,"　","　",null,null,"和光市立第二中学校"]
[107,"入選",null,null,null,null,null,"",null,"　","　",null,null,"川口市立上青木中学校"]
[108,"入選",null,null,null,null,null,"",null,"　","　",null,null,"戸田市立戸田東中学校"]
[109,"入選",null,null,null,null,null,"",null,"　","　",null,null,"川口市立安行中学校"]
[110,"入選",null,null,null,null,null,"",null,"　","　",null,null,"川口市立安行中学校"]
[111,"入選",null,null,null,null,null,"",null,"　","　",null,null,"戸田市立喜沢中学校"]
[112,"入選",null,null,null,null,null,"",null,"　","　",null,null,"川口市立安行中学校"]
[113,"入選",null,null,null,null,null,null,null,"　","　",null,null,"川口市立西中学校"]
[114,"入選",null,null,null,null,null,"",null,"　","　",null,null,"朝霞市立朝霞第三中学校"]
[115,"入選",null,null,null,null,null,"",null,"　","　",null,null,"戸田市立戸田東中学校"]
[116,"入選",null,null,null,null,null,"",null,"　","　",null,null,"朝霞市立朝霞第五中学校"]
[117,"入選",null,null,null,null,null,"",null,"　","　",null,null,"朝霞市立朝霞第三中学校"]
[118,"入選",null,null,null,null,null,"",null,"　","　",null,null,"川口市立上青木中学校"]
[119,"入選",null,null,null,null,null,"",null,"　","　",null,null,"朝霞市立朝霞第三中学校"]
[120,"入選",null,null,null,null,null,"",null,"　","　",null,null,"川口市立北中学校"]
[121,"入選",null,null,null,null,null,"",null,"　","　",null,null,"朝霞市立朝霞第五中学校"]
[122,"入選",null,null,null,null,null,"",null,"　","　",null,null,"和光市立第三中学校"]
[123,"入選",null,null,null,null,null,"",null,"　","　",null,null,"朝霞市立朝霞第二中学校"]
[124,"入選",null,null,null,null,null,"",null,"　","　",null,null,"川口市立安行中学校"]
[125,"入選",null,null,null,null,null,"",null,"　","　",null,null,"和光市立第三中学校"]
[126,"入選",null,null,null,null,null,"",null,"　","　",null,null,"草加市立草加中学校"]
[127,"入選",null,null,null,null,null,"",null,"　","　",null,null,"草加市立草加中学校"]
[128,"入選",null,null,null,null,null,"",null,"　","　",null,null,"川口市立上青木中学校"]
[129,"入選",null,null,null,null,null,"",null,"　","　",null,null,"川口市立領家中学校"]
[130,"入選",null,null,null,null,null,{"$f":"PHONETIC(G135)","v":""},null,"　","　",null,null,"朝霞市立朝霞第三中学校"]
[131,"入選",null,null,null,null,null,"",null,"　","　",null,null,"川口市立西中学校"]
[132,"入選",null,null,null,null,null,"",null,"　","　",null,null,"朝霞市立朝霞第二中学校"]
[133,"入選",null,null,null,null,null,"",null,"　","　",null,null,"朝霞市立朝霞第二中学校"]
[134,"入選",null,null,null,null,null,"",null,"　","　",null,null,"川口市立領家中学校"]
[135,"入選",null,null,null,null,null,"",null,"　","　",null,null,"蕨市立第二中学校"]
[136,"入選",null,null,null,null,null,"",null,"　","　"]
[137,"入選",null,null,null,null,null,"",null,"　","　"]
[138,"入選",null,null,null,null,null,"",null,"　","　"]
[139,"入選",null,null,null,null,null,"",null,"　","　"]
[140,"入選",null,null,null,null,null,"",null,"　","　"]
[141,"入選",null,null,null,null,null,"",null,"　","　"]
[142,"入選",null,null,null,null,null,"",null,"　","　"]
[143,"入選",null,null,null,null,null,"",null,"　","　"]
[144,"入選",null,null,null,null,null,"",null,"　","　"]
[145,"入選",null,null,null,null,null,"",null,"　","　"]
[146,"入選",null,null,null,null,null,"",null,"　","　"]
[147,"入選",null,null,null,null,null,"",null,"　","　"]
[148,"入選",null,null,null,null,null,"",null,"　","　"]
[149,"入選",null,null,null,null,null,"",null,"　","　"]
[150,"入選",null,null,null,null,null,"",null,"　","　"]

{"sheet":"出品票　貼付 ","index":2,"n_rows":37,"n_cols":15,"rows_kept":37,"cut":false,"hidden":false,"merged":[[33,3,33,7],[34,3,34,5],[35,5,35,7],[36,5,36,7],[32,0,32,7],[25,3,25,7],[26,3,26,5],[27,5,27,7],[28,5,28,7],[4,9,4,15],[16,0,16,7],[9,3,9,7],[11,5,11,7],[12,5,12,7],[17,3,17,7],[18,3,18,5],[19,5,19,7],[20,5,20,7],[24,0,24,7],[0,0,0,7],[1,3,1,7],[3,5,3,7],[4,5,4,7],[8,0,8,7]]}
[null,null,null,null,null,null,null,null,null,null,"上","→","→","→","下"]
[null,{"$f":"IF($K$2=\"\",\"\", 出品者名簿!$L$2)","v":"さいたま"},null,{"$f":"IF(K2=\"\",\"\",VLOOKUP($K2,出品者名簿!$A$4:$L$138,9,FALSE))&\"\"","v":""},null,null,null,null,null,null,1,2,3,4,5]
[null,{"$f":"IF(K2=\"\",\"\",VLOOKUP($K2,出品者名簿!$A$4:$L$138,3,FALSE))&\"\"","v":""},null,{"$f":"IF(K2=\"\",\"\",VLOOKUP($K2,出品者名簿!$A$4:$L$138,12,FALSE))&\"\"","v":""},null,null,{"$f":"IF($K$2=\"\",\"\",VLOOKUP($K$2,出品者名簿!$A$4:$L$138,10,FALSE))&\"\"","v":""},{"$f":"IF($K$2=\"\",\"\",VLOOKUP($K$2,出品者名簿!$A$4:$L$138,11,FALSE))&\"\"","v":""},null,null,"↑出品者名簿の印刷したい番号を入力"]
[null,null,null,null,null,{"$f":"IF(K2=\"\",\"\",VLOOKUP($K$2,出品者名簿!$A$4:$H$138,8,FALSE))&\"\"","v":""}]
[null,{"$f":"IF(K2=\"\",\"\",VLOOKUP($K2,出品者名簿!$A$4:$H$138,3,FALSE)&\"立\"&VLOOKUP($K2,出品者名簿!$A4:$H$138,4,FALSE)&VLOOKUP($K2,出品者名簿!$A$4:$H$138,5,FALSE)&\"学校\")","v":"立学校"},null,{"$f":"IF(K2=\"\",\"\",VLOOKUP($K2,出品者名簿!$A$4:$H$138,5,FALSE))&VLOOKUP($K2,出品者名簿!$A$4:$H$138,6,FALSE)&\"\"","v":""},null,{"$f":"IF(K2=\"\",\"\",VLOOKUP($K2,出品者名簿!$A$4:$H$138,7,FALSE))&\"\"","v":""},null,null,null,"※修正は出品者名簿内で行ってください。"]
[]
[]
[]
[]
[null,{"$f":"IF($L$2=\"\",\"\", 出品者名簿!$L$2)","v":"さいたま"},null,{"$f":"IF($L$2=\"\",\"\",VLOOKUP($L$2,出品者名簿!$A$4:$L$138,9,FALSE))&\"\"","v":""}]
[null,{"$f":"IF($L$2=\"\",\"\", VLOOKUP($L2,出品者名簿!$A$4:$L$138,3,FALSE))&\"\"","v":""},null,{"$f":"IF($L$2=\"\",\"\", VLOOKUP($L2,出品者名簿!$A$4:$L$138,12,FALSE))&\"\"","v":""},null,null,{"$f":"IF($L$2=\"\",\"\",VLOOKUP($L$2,出品者名簿!$A$4:$L$138,10,FALSE))&\"\"","v":""},{"$f":"IF($L$2=\"\",\"\",VLOOKUP($L$2,出品者名簿!$A$4:$L$138,11,FALSE))&\"\"","v":""}]
[null,null,null,null,null,{"$f":"IF($L$2=\"\",\"\", VLOOKUP($L2,出品者名簿!$A$4:$H$138,8,FALSE))","v":""}]
[null,{"$f":"IF($L$2=\"\",\"\", VLOOKUP($L$2,出品者名簿!$A$4:$H$138,3,FALSE)&\"立\"&VLOOKUP($L$2,出品者名簿!$A4:$H$138,4,FALSE)&VLOOKUP($L$2,出品者名簿!$A$4:$H$138,5,FALSE)&\"学校\")","v":"立学校"},null,{"$f":"IF($L$2=\"\",\"\", VLOOKUP($L$2,出品者名簿!$A$4:$H$138,5,FALSE))&VLOOKUP($L$2,出品者名簿!$A$4:$H$138,6,FALSE)","v":""},null,{"$f":"IF($L$2=\"\",\"\", VLOOKUP($L2,出品者名簿!$A$4:$H$138,7,FALSE))&\"\"","v":""}]
[]
[]
[]
[]
[null,{"$f":"IF($M$2=\"\",\"\", 出品者名簿!$L$2)","v":"さいたま"},null,{"$f":"IF( M$2 =\"\",\"\",VLOOKUP($M2,出品者名簿!$A$4:$L$138,9,FALSE))&\"\"","v":""}]
[null,{"$f":"IF(M$2=\"\",\"\", VLOOKUP($M$2,出品者名簿!$A$4:$L$138,3,FALSE))&\"\"","v":""},null,{"$f":"IF(M$2=\"\",\"\", VLOOKUP($M$2,出品者名簿!$A$4:$L$138,12,FALSE))&\"\"","v":""},null,null,{"$f":"IF($M$2=\"\",\"\",VLOOKUP($M2,出品者名簿!$A$4:$L$138,10,FALSE))&\"\"","v":""},{"$f":"IF($M$2=\"\",\"\",VLOOKUP($M$2,出品者名簿!$A$4:$L$138,11,FALSE))&\"\"","v":""}]
[null,null,null,null,null,{"$f":"IF(M$2=\"\",\"\", VLOOKUP($M$2,出品者名簿!$A$4:$H$138,8,FALSE))","v":""}]
[null,{"$f":"IF(M$2=\"\",\"\", VLOOKUP($M$2,出品者名簿!$A$4:$H$138,3,FALSE)&\"立\"&VLOOKUP($M$2,出品者名簿!$A$4:$H$138,4,FALSE)&VLOOKUP($M$2,出品者名簿!$A$4:$H$138,5,FALSE)&\"学校\")","v":"立学校"},null,{"$f":"IF(M$2=\"\",\"\", VLOOKUP($M$2,出品者名簿!$A$4:$H$138,5,FALSE))&VLOOKUP($M$2,出品者名簿!$A$4:$H$138,6,FALSE)","v":""},null,{"$f":"IF(M$2=\"\",\"\", VLOOKUP($M$2,出品者名簿!$A$4:$H$138,7,FALSE))&\"\"","v":""}]
[]
[]
[]
[]
[null,{"$f":"IF($N$2=\"\",\"\", 出品者名簿!$L$2)","v":"さいたま"},null,{"$f":"IF($N$2=\"\",\"\", VLOOKUP($N2,出品者名簿!$A$4:$L$138,9,FALSE))&\"\"","v":""}]
[null,{"$f":"IF($N$2=\"\",\"\", VLOOKUP($N$2,出品者名簿!$A$4:$L$138,3,FALSE))&\"\"","v":""},null,{"$f":"IF($N$2=\"\",\"\", VLOOKUP($N$2,出品者名簿!$A$4:$L$138,12,FALSE))&\"\"","v":""},null,null,{"$f":"IF($N$2=\"\",\"\",VLOOKUP($N$2,出品者名簿!$A$4:$L$138,10,FALSE))&\"\"","v":""},{"$f":"IF($N$2=\"\",\"\",VLOOKUP($N$2,出品者名簿!$A$4:$L$138,11,FALSE))&\"\"","v":""}]
[null,null,null,null,null,{"$f":"IF($N$2=\"\",\"\", VLOOKUP($N$2,出品者名簿!$A$4:$H$138,8,FALSE))","v":""}]
[null,{"$f":"IF($N$2=\"\",\"\", VLOOKUP($N$2,出品者名簿!$A$4:$H$138,3,FALSE)&\"立\"&VLOOKUP($N$2,出品者名簿!$A$4:$H$138,4,FALSE)&VLOOKUP($N$2,出品者名簿!$A$4:$H$138,5,FALSE)&\"学校\")","v":"立学校"},null,{"$f":"IF($N$2=\"\",\"\", VLOOKUP($N$2,出品者名簿!$A$4:$H$138,5,FALSE))&VLOOKUP($N$2,出品者名簿!$A$4:$H$138,6,FALSE)","v":""},null,{"$f":"IF($N$2=\"\",\"\", VLOOKUP($N$2,出品者名簿!$A$4:$H$138,7,FALSE))&\"\"","v":""}]
[]
[]
[]
[]
[null,{"$f":"IF($O$2=\"\",\"\", 出品者名簿!$L$2)","v":"さいたま"},null,{"$f":"IF($O$2=\"\",\"\",VLOOKUP($O$2,出品者名簿!$A$4:$L$138,9,FALSE))&\"\"","v":""}]
[null,{"$f":"IF($O$2=\"\",\"\", VLOOKUP($O$2,出品者名簿!$A$4:$L$138,3,FALSE))&\"\"","v":""},null,{"$f":"IF($O$2=\"\",\"\", VLOOKUP($O$2,出品者名簿!$A$4:$L$138,12,FALSE))&\"\"","v":""},null,null,{"$f":"IF(O2=\"\",\"\",VLOOKUP($O2,出品者名簿!$A$4:$L$138,10,FALSE))&\"\"","v":""},{"$f":"IF($O$2=\"\",\"\",VLOOKUP($O$2,出品者名簿!$A$4:$L$138,11,FALSE))&\"\"","v":""}]
[null,null,null,null,null,{"$f":"IF($O$2=\"\",\"\", VLOOKUP($O$2,出品者名簿!$A$4:$H$138,8,FALSE))","v":""}]
[null,{"$f":"IF($O$2=\"\",\"\", VLOOKUP($O$2,出品者名簿!$A$4:$H$138,3,FALSE)&\"立\"&VLOOKUP($O$2,出品者名簿!$A$4:$H$138,4,FALSE)&VLOOKUP($O$2,出品者名簿!$A$4:$H$138,5,FALSE)&\"学校\")","v":"立学校"},null,{"$f":"IF($O$2=\"\",\"\", VLOOKUP($O$2,出品者名簿!$A$4:$H$138,5,FALSE))&VLOOKUP($O$2,出品者名簿!$A$4:$H$138,6,FALSE)","v":""},null,{"$f":"IF($O$2=\"\",\"\", VLOOKUP($O$2,出品者名簿!$A$4:$H$138,7,FALSE))&\"\"","v":""}]

{"sheet":"出品一覧表","index":3,"n_rows":29,"n_cols":7,"rows_kept":29,"cut":false,"hidden":false,"merged":[[16,1,16,5],[9,4,9,5],[11,4,11,5],[13,4,13,5],[6,2,6,3],[6,4,6,5],[0,0,0,6],[9,1,9,3],[11,1,11,3],[13,1,13,3],[4,3,4,5],[17,2,18,2],[17,3,18,3],[17,4,17,5],[27,1,27,5],[28,1,28,5],[17,1,18,1]]}
["身体障害者福祉のための埼玉県児童生徒美術展覧会"]
["出品一覧表　　　　　　　"]
[null,null,null,null,null,"　　　年　　月　　日"]
[]
[null,null,"学校名"]
[]
[null,null,"取扱い責任者氏名"]
[]
[]
[null,"１　在 籍 児 童 生 徒 数",null,null,null,null,"人"]
[]
[null,"２　購入　画・版画・水彩用紙合計",null,null,null,null,"枚"]
[]
[null,"３　搬　入　数　合　計",null,null,null,null,"点"]
[]
[]
[null,"４　搬入・選・賞内訳"]
[null,"学　年","搬　入　数","入　選　数","入　賞　(展　示)"]
[null,null,null,null,"特別賞","特　選"]
[null,"１　年"]
[null,"２　年"]
[null,"３　年"]
[null,"４　年"]
[null,"５　年"]
[null,"６　年"]
[null,"合　計"]
[]
[null,"注) ☆各学校であらかじめ５分の１にしぼって搬入して下さい。"]
[null,"　  ☆出品目録は２部作成し１部を控えとして1部提出をして下さい。"]